Workbook

Sheet Version
A1: This Pricing Schedule is based on the COTO Draft Standard (DS) October 2020, and updated for the Works Pro-Forma Book 3 - 2024.1 – July 2024 version saved in EDMS folder 7475454

Sheet Conv. Construction BoQ
A2: SCHEDULES | B2: ITEM NO | C2: DESCRIPTION | D2: UNIT | E2: QUANTITY | F2: RATE | G2: AMOUNT
B4: C1.2 | C4: GENERAL REQUIREMENTS AND PROVISIONS
B5: C1.2.1 | C5: Environmental Management
B6: C1.2.1.1 | C6: Monitoring of compliance with and reporting on the EMP | D6: month | E6: 12 | G6: =E6*F6 -> 0
B7: C1.2.1.2 | C7: Dedicated environmental officer (if specified in the Contract Documentation) | D7: month | E7: 12 | G7: =E7*F7 -> 0
B8: C1.2.2 | C8: Programming and Reporting
B9: C1.2.2.1 | C9: Submission of a Scheme 1 Programme | D9: lump sum
B10: C1.2.2.2 | C10: Reviewing and updating a Scheme 1 Programme | D10: month | G10: =E10*F10 -> 0
B11: C1.2.2.3 | C11: Submission of a Scheme 2 Initial Programme | D11: lump sum | E11: 1 | G11: =E11*F11 -> 0
B12: C1.2.2.4 | C12: Submission of a Scheme 2 Full Programme | D12: lump sum | E12: 1 | G12: =E12*F12 -> 0
B13: C1.2.2.5 | C13: Reviewing and updating a Scheme 2 programme every month | D13: month | E13: 12 | G13: =E13*F13 -> 0
B14: C1.2.2.6 | C14: Preparation and submission of all information and reports specified in the Contract Documentation | D14: month | E14: 12 | G14: =E14*F14 -> 0
B15: C1.2.3 | C15: Routine road maintenance of existing public roads within the Site of the Works or other public roads outside the Site of the Works which are used as detours
B16: C 1.2.3.1 | C16: Grass cutting | D16: hectare (ha) | G16: =E16*F16 -> 0
B17: C1.2.3.2 | C17: Drain cleaning | D17: kilometre (km) | G17: 0
B18: C1.2.3.3 | C18: Cleaning out culverts | D18: cubic metre (m3) | G18: 0
B19: C1.2.3.4 | C19: Collection of rubbish / litter | D19: kilometre (km) | G19: 0
B20: C1.2.3.5 | C20: Base patching using crushed stone material stabilised with bitumen emulsion and cement | D20: cubic metre (m3) | G20: 0
B21: C1.2.3.6 | C21: Base and/or surface patching using cold premixed asphalt | D21: kilogram (kg) | G21: 0
B22: C1.2.3.7 | C22: Base and/or surface patching using hot plant mixed asphalt | D22: ton (t) | G22: 0
B23: C1.2.3.8 | C23: Replacement of damaged guardrails including posts | D23: metre (m) | G23: 0
B24: C1.2.3.9 | C24: Grading of temporary gravel deviations and existing roads used as detours | D24: kilometre (km) | G24: 0
B25: C1.2.3.10 | C25: Watering of temporary gravel deviations and existing roads used as detours | D25: kilolitre (kℓ) | G25: 0
B26: C1.2.3.11 | C26: Other road maintenance work ordered by the Engineer | D26: provisional sum
B27: C1.2.3.12 | C27: Handling cost, profit and all other charges in respect of item C1.2.3.11 | D27: percentage (%) | E27: =G26 -> 0 | G27: =E27*F27 -> 0
B28: C1.2.3.13 | C28: Liaison with the routine road maintenance contractor | D28: month | G28: =E28*F28 -> 0
B29: C1.2.4 | C29: Stakeholder liaison | D29: month | E29: 12 | G29: =E29*F29 -> 0
B30: C1.2.5 | C30: Safety
B31: C1.2.5.1 | C31: Health and safety plan | D31: lump sum | E31: 1 | G31: =E31*F31 -> 0
B32: C1.2.5.2 | C32: Implementation of health and safety plan | D32: month | E32: 12 | G32: =E32*F32 -> 0
B33: C1.2.6 | C33: Work adjacent to properties
B34: C1.2.6.1 | C34: Survey of adjacent properties | D34: number (No.) | G34: =E34*F34 -> 0
B35: C1.2.6.2 | C35: Preventive and/or mitigation measures | D35: provisional sum
B36: C1.2.6.3 | C36: Handling cost, profit and all other charges in respect of item C1.2.6.2 | D36: percentage (%) | E36: =G35 -> 0 | G36: =E36*F36 -> 0
B37: PC1.2.7 | C37: Road safety audits
B38: C1.2.7.1 | C38: Stage 4 work zone traffic management audit | D38: provisional sum
B39: C1.2.7.2 | C39: Handling cost, profit and all other charges in respect of item C1.2.7.1 | D39: percentage (%) | E39: =G38 -> 0 | G39: =E39*F39 -> 0
B40: C1.2.7.3 | C40: Stage 5 pre-opening stage traffic safety audit | D40: provisional sum
B41: C1.2.7.4 | C41: Handling cost, profit and all other charges in respect of item C1.2.7.3 | D41: percentage (%) | E41: =G40 -> 0 | G41: =E41*F41 -> 0
B42: C1.2.8 | C42: Dayworks
B43: C1.2.8.1 | C43: Personnel
B44: C1.2.8.1(a) | C44: Unskilled labourer | D44: hour (h) | E44: 120 | G44: =E44*F44 -> 0
B45: C1.2.8.1(b) | C45: Semi-skilled labourer | D45: hour (h) | E45: 120 | G45: 0
B46: C1.2.8.1(c) | C46: Skilled labourer | D46: hour (h) | E46: 80 | G46: 0
B47: C1.2.8.1(d) | C47: Gang leader | D47: hour (h) | E47: 80 | G47: 0
B48: C1.2.8.1(e) | C48: Foreman | D48: hour (h) | E48: 60 | G48: 0
B49: C1.2.8.1(f) | C49: Skilled artisan | D49: hour (h) | E49: 80 | G49: 0
B50: C1.2.8.2 | C50: Construction equipment (specify size and/or model number)
B51: C1.2.8.2(a) | C51: Motor grader | D51: hour (h) | E51: 40 | G51: =E51*F51 -> 0
B52: C1.2.8.2(b) | C52: Vibratory roller | D52: hour (h) | E52: 40 | G52: 0
B53: C1.2.8.2(c) | C53: Pneumatic roller | D53: hour (h) | E53: 40 | G53: 0
B54: C1.2.8.2(d) | C54: Front end loader | D54: hour (h) | E54: 40 | G54: 0
B55: C1.2.8.2(e) | C55: Tractor loader backhoe | D55: hour (h) | E55: 40 | G55: 0
B56: C1.2.8.2(f) | C56: Excavator | D56: hour (h) | E56: 40 | G56: 0
B57: C1.2.8.2(g) | C57: Compressor | D57: hour (h) | E57: 40 | G57: 0
B58: C1.2.8.2(h) | C58: Tipper Truck (10 m3) | D58: hour (h) | E58: 40 | G58: 0
B59: C1.2.8.2(i) | C59: Water truck (10 000 litre) | D59: hour (h) | E59: 40 | G59: 0
B60: C1.2.8.2(j) | C60: Milling Machine | D60: hour (h) | E60: 40 | G60: 0
B61: C1.2.8.3 | C61: Vehicles (specify size)
B62: C1.2.8.3(a) | C62: Light delivery vehicle | D62: kilometre (km) | E62: 1000 | G62: =E62*F62 -> 0
B63: C1.2.8.3(b) | C63: Flatbed truck | D63: kilometre (km) | E63: 1000 | G63: =E63*F63 -> 0
B64: C1.2.8.3(c) | C64: Dump truck | D64: kilometre (km) | E64: 1000 | G64: =E64*F64 -> 0
B65: C1.2.8.3(d) | C65: Other vehicles (specify) | D65: kilometre (km) | G65: =E65*F65 -> 0
B66: C1.2.8.4 | C66: Materials
B67: C1.2.8.4(a) | C67: Procurement of materials | D67: provisional sum | E67: 1 | F67: R2,050,000.00 | G67: =E67*F67 -> R2,050,000.00
B68: C1.2.8.4(b) | C68: Contractor's handling costs, profit and all other charges in respect of item C1.2.8.4(a) | D68: percentage (%) | E68: =G67 -> R2,050,000.00 | G68: =E68*F68 -> 0
B69: C1.2.9 | C69: Disposal of non-useable assets
B70: C1.2.9.1 | C70: Disposal of non-useable assets identified in the Contract Documentation at time of tender (list items and quantity) | D70: rate (per asset)
B71: C1.2.9.2 | C71: Disposal of non-useable assets not identified at time of tender | D71: provisional sum
B72: C1.2.9.3 | C72: Handling cost, profit and all other charges in respect of item C1.2.9.2 | D72: percentage (%) | E72: =G71 -> 0 | G72: =E72*F72 -> 0
B73: PC1.2.10 | C73: Dispute Adjudication Board (DAB)
B74: C1.2.10.1 | C74: Employer’s contribution to DAB (50%) | D74: prime cost (PC) sum | E74: 1 | F74: R240,000.00 | G74: =E74*F74 -> R240,000.00
B78: C1.2 | C78: TOTAL CARRIED FORWARD TO SUMMARY | G78: =SUM(G6:G77) -> R2,290,000.00
B80: C1.3 | C80: CONTRACTOR’S SITE ESTABLISHMENT AND GENERAL OBLIGATIONS
B81: PC1.3.1 | C81: The Contractor's general obligations
B82: C1.3.1.1 | C82: Fixed obligations | D82: lump sum | E82: 1 | G82: =E82*F82 -> 0
B83: C1.3.1.2 | C83: Value-related obligations | D83: lump sum | E83: 1 | G83: =E83*F83 -> 0
B84: C1.3.1.3 | C84: Time-related obligations
B85: C1.3.1.3(a) | C85: Mobilisation period | D85: month | E85: 3 | G85: 0
B86: C1.3.1.3(b) | C86: Execution of the works | D86: month | E86: 12 | G86: 0
B87: C1.3.1.4 | C87: Suspension Cost
B88: C1.3.1.4(a) | C88: De-establishment | D88: number | E88: 1 | G88: =E88*F88 -> 0
B89: C1.3.1.4(b) | C89: Re-establishment | D89: number | E89: 1 | G89: 0
B90: C1.3.1.4(c) | C90: Suspension period | D90: month | E90: 3 | G90: 0
B91: C1.3.1.4(d) | C91: Engineer's cost | D91: prime cost (PC) sum | E91: 1 | F91: R500,000.00 | G91: R500,000.00
B92: C1.3.1.4(e) | C92: Handling cost, profit and all other charges in respect of item C1.3.1.4(d) | D92: percentage (%) | E92: =G91 -> R500,000.00 | G92: =E92*F92 -> 0
B93: C1.3.2 | C93: Contract sign boards | D93: square metre (m2) | E93: 20 | G93: =E93*F93 -> 0
B97: C1.3 | C97: TOTAL CARRIED FORWARD TO SUMMARY | G97: =SUM(G82:G96) -> R500,000.00
B99: C1.4 | C99: FACILITIES FOR THE ENGINEER
B100: C1.4.1 | C100: Site accommodation
B101: C1.4.1.1 | C101: Offices and conference room | D101: square metre (m2) | E101: 180 | G101: =E101*F101 -> 0
B102: C1.4.1.2 | C102: Laboratories | D102: square metre (m2) | E102: 120 | G102: 0
B103: C1.4.1.3 | C103: Open concrete working floors and verandas | D103: square metre (m2) | E103: 60 | G103: 0
B104: C1.4.1.4 | C104: Roofs over open concrete working floors and verandas | D104: square metre (m2) | E104: 70 | G104: 0
B105: C1.4.1.5 | C105: Store rooms inside the laboratory | D105: square metre (m2) | E105: 20 | G105: 0
B106: C1.4.1.6 | C106: Car ports | D106: number (No.) | E106: 6 | G106: 0
B107: C1.4.1.7 | C107: Ablution unit (equipped as specified) | D107: number (No.) | E107: 4 | G107: 0
B108: C1.4.1.8 | C108: Change room with a shower | D108: number (No.) | G108: 0
B109: C1.4.1.9 | C109: Kitchen unit (equipped as specified) | D109: number (No.) | E109: 1 | G109: 0
B110: C1.4.1.10 | C110: Type A prefabricated house (equipped as specified) | D110: number (No.) | G110: 0
B111: C1.4.1.11 | C111: Type B prefabricated house (equipped as specified) | D111: number (No.) | G111: 0
B112: C1.4.1.12 | C112: Type C prefabricated house (equipped as specified) | D112: number (No.) | G112: 0
B113: C1.4.1.13 | C113: Rented housing paid for by the Contractor | D113: provisional sum | E113: 1 | F113: R750,000.00 | G113: =E113*F113 -> R750,000.00
B114: C1.4.1.14 | C114: Contractor's handling costs, profit and all other charges in respect of item C1.4.1.13 | D114: percentage (%) | E114: =G113 -> R750,000.00 | G114: =E114*F114 -> 0
B115: C1.4.2 | C115: Items measured by area
B116: C1.4.2.1 | C116: Shelving as specified, complete with brackets | D116: square metre (m2) | E116: 10 | G116: =E116*F116 -> 0
B117: C1.4.2.2 | C117: Work benches with a concrete slab top | D117: square metre (m2) | E117: 15 | G117: 0
B118: C1.4.2.3 | C118: Work-benches with a wooden top | D118: square metre (m2) | E118: 15 | G118: 0
B119: C1.4.2.4 | C119: Constant-temperature baths of concrete and/or plastered brick | D119: square metre (m2) | E119: 10 | G119: 0
B120: C1.4.2.5 | C120: Concrete footings and pedestals for laboratory equipment | D120: square metre (m2) | E120: 6 | G120: 0
B121: C1.4.2.6 | C121: Roller blinds, opaque type | D121: square metre (m2) | E121: 15 | G121: 0
B122: C1.4.2.7 | C122: Venetian blinds | D122: square metre (m2) | E122: 15 | G122: 0
B123: C1.4.2.8 | C123: Notice boards | D123: square metre (m2) | E123: 4 | G123: 0
B124: C1.4.2.9 | C124: White boards | D124: square metre (m2) | E124: 4 | G124: 0
B125: C1.4.2.10 | C125: Galvanised wire mesh fencing for store rooms | D125: square metre (m2) | E125: 200 | G125: 0
B126: C1.4.2.11 | C126: Galvanised wire mesh store room gate with a padlock | D126: square metre (m2) | G126: 0
B127: C1.4.3 | C127: Items measured by number
B128: C1.4.3.1 | C128: Office swivel chair | D128: number (No.) | E128: 3 | G128: =E128*F128 -> 0
B129: C1.4.3.2 | C129: Office chair | D129: number (No.) | E129: 20 | G129: 0
B130: C1.4.3.3 | C130: Draughtsman's stool | D130: number (No.) | E130: 2 | G130: 0
B131: C1.4.3.4 | C131: Laboratory high chair | D131: number (No.) | E131: 6 | G131: 0
B132: C1.4.3.5 | C132: Office desk with 3 drawers (at least one lockable drawer) | D132: number (No.) | E132: 6 | G132: 0
B133: C1.4.3.6 | C133: Typist desk (L-shaped) | D133: number (No.) | E133: 4 | G133: 0
B134: C1.4.3.7 | C134: Drawing table | D134: number (No.) | E134: 2 | G134: 0
B135: C1.4.3.8 | C135: Conference table | D135: number (No.) | E135: 1 | G135: 0
B136: C1.4.3.9 | C136: Bookcase | D136: number (No.) | E136: 5 | G136: 0
B137: C1.4.3.10 | C137: Filing cabinet | D137: number (No.) | E137: 1 | G137: 0
B138: C1.4.3.11 | C138: General purpose steel cabinet with shelves | D138: number (No.) | E138: 10 | G138: 0
B139: C1.4.3.12 | C139: Wall mounted pivot plan filing system | D139: number (No.) | E139: 5 | G139: 0
B140: C1.4.3.13 | C140: 220/250 volt power outlet plug point | D140: number (No.) | E140: 20 | G140: 0
B141: C1.4.3.14 | C141: 400/231 volt 3-phase power outlet plug point | D141: number (No.) | E141: 10 | G141: 0
B142: C1.4.3.15 | C142: Single 1500m, 58 watt fluorescent tube ceiling light | D142: number (No.) | E142: 20 | G142: 0
B143: C1.4.3.16 | C143: Single 1500mm, 22 watt LED tube ceiling light | D143: number (No.) | E143: 10 | G143: 0
B144: C1.4.3.17 | C144: 11 watt compact fluorescent bulb ceiling light | D144: number (No.) | E144: 10 | G144: 0
B145: C1.4.3.18 | C145: 7 watt LED bulb ceiling light | D145: number (No.) | E145: 5 | G145: 0
B146: C1.4.3.19 | C146: Wash-hand basin | D146: number (No.) | E146: 3 | G146: 0
B147: C1.4.3.20 | C147: Laboratory basin | D147: number (No.) | E147: 3 | G147: 0
B148: C1.4.3.21 | C148: Extractor fan | D148: number (No.) | E148: 3 | G148: 0
B149: C1.4.3.22 | C149: Fume cupboard | D149: number (No.) | E149: 1 | G149: 0
B150: C1.4.3.23 | C150: Fire extinguisher 9,0 kg, dry powder type | D150: number (No.) | E150: 10 | G150: 0
B151: C1.4.3.24 | C151: Air-conditioning unit | D151: number (No.) | E151: 10 | G151: 0
B152: C1.4.3.25 | C152: Heater | D152: number (No.) | E152: 4 | G152: 0
B153: C1.4.3.26 | C153: Concrete specimen curing bath | D153: number (No.) | E153: 10 | G153: 0
B154: C1.4.3.27 | C154: Waste paper basket | D154: number (No.) | E154: 10 | G154: 0
B155: C1.4.3.28 | C155: UPS / Voltage stabiliser | D155: number (No.) | E155: 4 | G155: 0
B156: C1.4.3.29 | C156: A3 / A4 colour printer, copier, scanner | D156: number (No.) | E156: 1 | G156: 0
B157: C1.4.3.30 | C157: A4 colour printer, copier, scanner | D157: number (No.) | E157: 1 | G157: 0
B158: C1.4.3.31 | C158: Rain gauge | D158: number (No.) | E158: 1 | G158: 0
B159: C1.4.3.32 | C159: Minimum/maximum atmospheric temperature gauge | D159: number (No.) | E159: 1 | G159: 0
B160: C1.4.3.33 | C160: Digital thermometer | D160: number (No.) | E160: 2 | G160: 0
B161: C1.4.3.34 | C161: Mobile outdoor weather station | D161: number (No.) | E161: 2 | G161: 0
B162: C1.4.3.35 | C162: 3,0m aluminium straight edge complete with two measuring wedges | D162: number (No.) | E162: 1 | G162: 0
B163: C1.4.3.36 | C163: Measuring wheel | D163: number (No.) | E163: 2 | G163: 0
B164: C1.4.3.37 | C164: First aid kit | D164: number (No.) | E164: 2 | G164: 0
B165: C1.4.3.38 | C165: Standpipe complete with 30m of 19mm dia. heavy duty hose pipe | D165: number (No.) | G165: 0
B166: PC1.4.3.39 | C166: Projector and screen (size stated) | D166: number (No.) | G166: 0
B167: C1.4.4 | C167: Prime cost items
B168: C1.4.4.1 | C168: Cell phones costs, including pro-rata rentals, for calls made in connection with contract administration | D168: prime cost (PC) sum | E168: 1 | F168: R7,500.00 | G168: =E168*F168 -> R7,500.00
B169: C1.4.4.2 | C169: Handling costs and profit in respect of item C1.4.4.1 | D169: percentage (%) | E169: =G168 -> R7,500.00 | G169: 0
B170: C1.4.4.3 | C170: The provision of a direct independent telephone line for the Engineer, including the monthly rental charges and the cost of business calls | D170: prime cost (PC) sum | E170: 1 | F170: R20,000.00 | G170: R20,000.00
B171: C1.4.4.4 | C171: Handling costs and profit in respect of item C1.4.4.3 | D171: percentage (%) | E171: =G170 -> R20,000.00 | G171: 0
B172: C1.4.4.5 | C172: The provision of internet connectivity and WiFi data for Engineer’s site staff | D172: prime cost (PC) sum | E172: 1 | F172: R20,000.00 | G172: R20,000.00
B173: C1.4.4.6 | C173: Handling costs and profit in respect of item C1.4.4.5 | D173: percentage (%) | E173: =G172 -> R20,000.00 | G173: 0
B174: C1.4.4.7 | C174: The provision of paper and ink for a combination colour printer/copier/scanner | D174: prime cost (PC) sum | E174: 1 | F174: R20,000.00 | G174: R20,000.00
B175: C1.4.4.8 | C175: Handling costs and profit in respect of item C1.4.4.7 | D175: percentage (%) | E175: =G174 -> R20,000.00 | G175: 0
B176: C1.4.4.9 | C176: The provision of a complete 220/250 volt single phase electrical power installation, including all poles, insulators, wiring, switchboards, mains connections, meters etc. | D176: prime cost (PC) sum
B177: C1.4.4.10 | C177: Handling costs and profit in respect of item C1.4.4.9 | D177: percentage (%)
B178: C1.4.4.11 | C178: The provision of a complete 440/231 volt three phase electrical power installation, including all poles, insulators, wiring, switchboards, mains connections, meters etc. | D178: prime cost (PC) sum | E178: 1 | F178: R150,000.00 | G178: =E178*F178 -> R150,000.00
B179: C1.4.4.12 | C179: Handling costs and profit in respect of item C1.4.4.11 | D179: percentage (%) | E179: =G178 -> R150,000.00 | G179: =E179*F179 -> 0
B180: C1.4.4.13 | C180: Provision of a 440/231 volt three phase electricity generator if electricity from a power supply authority is not available on site | D180: prime cost (PC) sum
B181: C1.4.4.14 | C181: Handling costs and profit in respect of item C1.4.4.13 | D181: percentage (%) | E181: =G180 -> 0 | G181: =E181*F181 -> 0
B182: C1.4.4.15 | C182: The provision of all gas installations required at the site offices, laboratories and at the Engineer’s staff accommodation (if required), including gas storage cylinders, tubing, regulators, gas burners and shut-off cocks | D182: prime cost (PC) sum | E182: 1 | F182: 20000 | G182: =E182*F182 -> R20,000.00
B183: C1.4.4.16 | C183: Handling costs and profit in respect of item C1.4.4.15 | D183: percentage (%) | E183: =G182 -> R20,000.00 | G183: =E183*F183 -> 0
B184: C1.4.5 | C184: Services at site offices, laboratories and site accommodation
B185: C1.4.5.1 | C185: Fixed costs | D185: lump sum | E185: 1 | G185: =E185*F185 -> 0
B186: C1.4.5.2 | C186: Running costs | D186: month | E186: 12 | G186: =E186*F186 -> 0
B187: C1.4.6 | C187: Office staff
B188: C1.4.6.1 | C188: Secretary / receptionist | D188: month | E188: 12 | G188: =E188*F188 -> 0
B189: C1.4.6.2 | C189: Technical assistant | D189: month | E189: 12 | G189: =E189*F189 -> 0
B190: C1.4.7 | C190: Site inspection transport
B191: C1.4.7.1 | C191: Provision of a bus, mini-bus or combi van for site inspection purposes (specify type and size of vehicle) | D191: per day | E191: 10 | G191: =E191*F191 -> 0
B192: C1.4.7.2 | C192: Travel on site | D192: kilometre (km) | E192: 1000 | G192: =E192*F192 -> 0
B193: C1.4.8 | C193: Site security measures for the Engineer’s facilities
B194: C1.4.8.1 | C194: Supply and installation of all required security measures at the Engineer’s site offices and laboratories | D194: lump sum | E194: 1 | G194: =E194*F194 -> 0
B195: C1.4.8.2 | C195: Provision of security guards / watchmen and an armed response service at the Engineer’s site offices and laboratories | D195: month | E195: 12 | G195: =E195*F195 -> 0
B196: C1.4.8.3 | C196: Supply and installation of all required security measures at the Engineer’s site accommodation | D196: lump sum
B197: C1.4.8.4 | C197: Provision of security guards / watchmen and an armed response service at the Engineer’s site accommodation | D197: month | G197: =E197*F197 -> 0
B198: C1.4.8.5 | C198: Supply and installation of an alarm system at the Engineer’s rented accommodation (No. of houses stated …) | D198: lump sum
B199: C1.4.8.6 | C199: Provision of an armed response service at the Engineer’s rented accommodation (No. of houses stated …) | D199: month | G199: =E199*F199 -> 0
B203: C1.4 | C203: TOTAL CARRIED FORWARD TO SUMMARY | G203: =SUM(G101:G202) -> R987,500.00
B205: C1.5 | C205: ACCOMMODATION OF TRAFFIC
B206: C1.5.1 | C206: Accommodation of pedestrian and non-motorised traffic
B207: C1.5.1.1 | C207: Accommodation of pedestrian and non-motorised traffic | D207: month | G207: =E207*F207 -> 0
B208: C1.5.1.2 | C208: Construction of temporary pedestrian walkways and/or cycle paths:
B209: C1.5.1.2(a) | C209: Gravel surfaced pedestrian walkways / cycle paths | D209: square metre (m2) | G209: =E209*F209 -> 0
B210: C1.5.1.2(b) | C210: Bitumen surfaced pedestrian walkways / cycle paths | D210: square metre (m2) | G210: =E210*F210 -> 0
B211: C1.5.1.2(c) | C211: 60mm concrete block paved pedestrian walkways / cycle paths | D211: square metre (m2) | G211: =E211*F211 -> 0
B212: C1.5.2 | C212: Accommodation of vehicular traffic | D212: month | E212: 12 | G212: =E212*F212 -> 0
B213: C1.5.3 | C213: Liaison with traffic authorities | D213: month | E213: 12 | G213: =E213*F213 -> 0
B214: PC1.5.4 | C214: Construction of temporary deviations
... 3492 more rows

Sheet Summary
A1: SUMMARY
A3: CONTRACT SANRAL N.010-010-2021/1R
A4: FOR THE RESEAL ON NATIONAL ROUTE N10 SECTION 1 FROM NANAGA (KM0.0) TO PATERSON (KM22.0)
A6: GENERAL
A7: C1.2 | B7: GENERAL REQUIREMENTS AND PROVISIONS | C7: ='Conv. Construction BoQ'!G78 -> R2,290,000.00
A8: C1.3 | B8: CONTRACTOR’S SITE ESTABLISHMENT AND GENERAL OBLIGATIONS | C8: ='Conv. Construction BoQ'!G97 -> R500,000.00
A9: C1.4 | B9: FACILITIES FOR THE ENGINEER | C9: ='Conv. Construction BoQ'!G203 -> R987,500.00
A10: C1.5 | B10: ACCOMMODATION OF TRAFFIC | C10: ='Conv. Construction BoQ'!G273 -> R1,500,000.00
A11: C1.6 | B11: CLEARING AND GRUBBING | C11: ='Conv. Construction BoQ'!G312 -> R0.00
A12: C1.7 | B12: LOADING AND HAULING | C12: ='Conv. Construction BoQ'!G330 -> R0.00 | D12: =SUM(C7:C12) -> R5,277,500.00
A14: SERVICES
A15: C2.1 | B15: GENERAL REQUIREMENTS AND TRENCHING FOR SERVICES | C15: ='Conv. Construction BoQ'!G474 -> R0.00
A16: C2.2 | B16: DRY SERVICES | C16: ='Conv. Construction BoQ'!G546 -> R0.00
A17: C2.3 | B17: WET SERVICES | C17: ='Conv. Construction BoQ'!G770 -> R0.00
A18: C2.4 | B18: ENERGY AND OTHER SERVICES | C18: ='Conv. Construction BoQ'!G794 -> R0.00 | D18: =SUM(C15:C18) -> R0.00
A20: DRAINAGE
A21: C3.1 | B21: DRAINS | C21: ='Conv. Construction BoQ'!G882 -> R0.00
A22: C3.2 | B22: CULVERTS | C22: ='Conv. Construction BoQ'!G984 -> R0.00
A23: C3.3 | B23: CONCRETE KERBING AND CHANNELING, ASPHALT BERMS, CHUTES, DOWNPIPES, AS WELL AS CONCRETE, STONE PITCHED AND GABION LININGS FOR OPEN DRAINS | C23: ='Conv. Construction BoQ'!G1047 -> R0.00 | D23: =SUM(C21:C23) -> R0.00
A25: EARTHWORKS AND PAVEMENT LAYERS MATERIALS
A26: C4.1 | B26: BORROW MATERIALS | C26: ='Conv. Construction BoQ'!G1126 -> R0.00
A27: C4.2 | B27: CUT MATERIALS | C27: ='Conv. Construction BoQ'!G1194 -> R0.00
A28: C4.3 | B28: EXISTING ROAD MATERIALS | C28: ='Conv. Construction BoQ'!G1310 -> R0.00
A29: C4.4 | B29: COMMERCIAL MATERIALS | C29: ='Conv. Construction BoQ'!G1388 -> R0.00
A30: C4.5 | B30: ALTERNATIVE MATERIALS | C30: =#REF! -> R0.00 | D30: =SUM(C26:C30) -> R0.00
A32: EARTHWORKS AND PAVEMENT LAYERS CONSTRUCTION
A33: C5.1 | B33: ROADBED | C33: ='Conv. Construction BoQ'!G1498 -> R0.00
A34: C5.2 | B34: FILL | C34: ='Conv. Construction BoQ'!G1547 -> R0.00
A35: C5.3 | B35: ROAD PAVEMENT LAYERS | C35: ='Conv. Construction BoQ'!G1633 -> R0.00 | D35: =SUM(C33:C37) -> R0.00
A36: C5.4 | B36: STABILISATION | C36: ='Conv. Construction BoQ'!G1680 -> R0.00
A37: C5.5 | B37: RECONSTRUCTION OF PAVEMENT LAYERS | C37: ='Conv. Construction BoQ'!G1878 -> R0.00
A39: CONCRETE LAYERS
A40: C6.1 | B40: PAVER LAID CONCRETE LAYERS | C40: ='Conv. Construction BoQ'!G1928 -> R0.00
A41: C6.2 | B41: SEGMENTAL BLOCK PAVING LAYERS | C41: ='Conv. Construction BoQ'!G1942 -> R0.00 | D41: =SUM(C40:C41) -> R0.00
A43: MAINTENANCE AND REPAIR CONCRETE LAYERS
A44: C7.1 | B44: REPLACEMENT OF EXISTING JOINT SEALANT | C44: ='Conv. Construction BoQ'!G1956 -> R0.00
A45: C7.2 | B45: REPAIR TO CONCRETE PANELS AND CONCRETE ADJACENT TO UNCONTROLLED CRACKS AND EXISTING JOINTS | C45: ='Conv. Construction BoQ'!G1993 -> R0.00
A46: C7.3 | B46: REMOVAL AND REINSTATEMENT OF EXISTING CONCRETE LAYERS | C46: ='Conv. Construction BoQ'!G2039 -> R0.00
A47: C7.4 | B47: REINSTATEMENT OF SLAB SUPPORT BY GROUT INJECTION | C47: ='Conv. Construction BoQ'!G2046 -> R0.00
A48: C7.5 | B48: REINSTATEMENT OF RIDING QUALITY | C48: ='Conv. Construction BoQ'!G2053 -> R0.00
A49: C7.6 | B49: REINSTATEMENT OF SURFACE TEXTURE | C49: ='Conv. Construction BoQ'!G2060 -> R0.00 | D49: =SUM(C44:C49) -> R0.00
A51: PRETREATMENT AND REPAIR EXISTING LAYERS
A52: C8.1 | B52: PRIME COAT | C52: ='Conv. Construction BoQ'!G2076 -> R0.00
A53: C8.2 | B53: COVER SPRAYS, FOG SPRAYS AND REJUVENATION SPRAYS | C53: ='Conv. Construction BoQ'!G2096 -> R0.00
A54: C8.3 | B54: TEXTURE TREATMENT | C54: ='Conv. Construction BoQ'!G2106 -> R0.00
A55: C8.4 | B55: RUT AND/OR DEPRESSION CORRECTION | C55: ='Conv. Construction BoQ'!G2120 -> R0.00
A56: C8.5 | B56: STANDARD CRACK SEALING | C56: ='Conv. Construction BoQ'!G2136 -> R0.00
A57: C8.6 | B57: GEOSYNTHETIC CRACK SEALING | C57: ='Conv. Construction BoQ'!G2147 -> R0.00
A58: C8.7 | B58: PLANING | C58: ='Conv. Construction BoQ'!G2159 -> R0.00
A59: C8.8 | B59: PATCHING AND EDGE BREAK REPAIR | C59: ='Conv. Construction BoQ'!G2233 -> R0.00 | D59: =SUM(C52:C60) -> R0.00
A60: C8.9 | B60: REPAIR OF SURFACE DEFECTS | C60: ='Conv. Construction BoQ'!G2251 -> R0.00
A62: ASPHALT LAYERS
A63: C9.1 | B63: ASPHALT LAYERS | C63: ='Conv. Construction BoQ'!G2354 -> R0.00 | D63: =SUM(C63) -> R0.00
A65: SURFACE TREATMENTS
A66: C10.1 | B66: GENERAL REQUIREMENTS FOR SURFACE TREATMENTS | C66: ='Conv. Construction BoQ'!G2479 -> R0.00 | D66: =SUM(C66) -> R0.00
A68: ANCILLIARY ROAD WORKS
A69: C11.1 | B69: PITCHING, STONEWORK, CAST IN SITU CONCRETE FOR PROTECTION AGAINST EROSION | C69: ='Conv. Construction BoQ'!G2514 -> R0.00
A70: C11.2 | B70: NON-STRUCTURAL GABIONS | C70: ='Conv. Construction BoQ'!G2535 -> R0.00
A71: C11.3 | B71: GUIDE BLOCKS AND KILOMETRE MARKERS | C71: ='Conv. Construction BoQ'!G2544 -> R0.00
A72: C11.4 | B72: ROAD RESTRAINT SYSTEMS | C72: ='Conv. Construction BoQ'!G2621 -> R0.00
A73: C11.5 | B73: FENCING | C73: ='Conv. Construction BoQ'!G2686 -> R0.00
A74: C11.6 | B74: ROAD SIGNS | C74: ='Conv. Construction BoQ'!G2793 -> R0.00
A75: C11.7 | B75: ROAD MARKINGS AND ROAD STUDS | C75: ='Conv. Construction BoQ'!G2895 -> R0.00
A76: C11.8 | B76: LANDSCAPING AND PLANTING PLANTS | C76: ='Conv. Construction BoQ'!G2947 -> R0.00
A77: C11.9 | B77: FINISHING THE ROAD AND ROAD RESERVE AND TREATING OLD ROADS | C77: ='Conv. Construction BoQ'!G2959 -> R0.00 | D77: =SUM(C69:C77) -> R0.00
A79: GEOTECHNICAL
A80: C12.1 | B80: PILING | C80: ='Conv. Construction BoQ'!G3034 -> R0.00
A81: C12.2 | B81: GROUND ANCHORS | C81: ='Conv. Construction BoQ'!G3065 -> R0.00
A82: C12.3 | B82: GROUND IMPROVEMENT | C82: ='Conv. Construction BoQ'!G3144 -> R0.00
A83: C12.4 | B83: LATERAL SUPPORT | C83: ='Conv. Construction BoQ'!G3182 -> R0.00
A84: C12.5 | B84: SHOTCRETE | C84: ='Conv. Construction BoQ'!G3206 -> R0.00
A85: C12.6 | B85: MECHANICALLY STABILISED EARTH WALLS AND GABIONS | C85: ='Conv. Construction BoQ'!G3250 -> R0.00
A86: C12.7 | B86: TRENCHLESS METHODS | C86: ='Conv. Construction BoQ'!G3263 -> R0.00
A87: C12.8 | B87: GROUND DRAINAGE | C87: ='Conv. Construction BoQ'!G3288 -> R0.00
A88: C12.9 | B88: SLOPE PROTECTION MEASURES | C88: ='Conv. Construction BoQ'!G3306 -> R0.00
A89: C12.10 | B89: HARD EXCAVATION BY BLASTING | C89: ='Conv. Construction BoQ'!G3320 -> R0.00
A90: C12.11 | B90: GEOSYNTHETICS | C90: ='Conv. Construction BoQ'!G3327 -> R0.00
A91: C12.12 | B91: CONSTRUCTION DEWATERING | C91: ='Conv. Construction BoQ'!G3343 -> R0.00 | D91: =SUM(C80:C91) -> R0.00
A93: STRUCTURES
A94: C13.1 | B94: FOUNDATIONS | C94: ='Conv. Construction BoQ'!G3431 -> R0.00
A95: C13.2 | B95: FALSEWORK, FORMWORK AND CONCRETE FINISH | C95: ='Conv. Construction BoQ'!G3449 -> R0.00
A96: C13.3 | B96: STEEL REINFORCEMENT | C96: ='Conv. Construction BoQ'!G3466 -> R0.00
A97: C13.4 | B97: CONCRETE | C97: ='Conv. Construction BoQ'!G3522 -> R0.00
A98: C13.5 | B98: PRESTRESSING | C98: ='Conv. Construction BoQ'!G3538 -> R0.00
A99: C13.6 | B99: BEARINGS | C99: ='Conv. Construction BoQ'!G3556 -> R0.00
A100: C13.7 | B100: JOINTS | C100: ='Conv. Construction BoQ'!G3600 -> R0.00
A101: C13.8 | B101: ANCILLARY STRUCTURAL ELEMENTS | C101: ='Conv. Construction BoQ'!G3640 -> R0.00
A102: C13.9 | B102: STRUCTURAL STEELWORK FOR MINOR STRUCTURES | C102: ='Conv. Construction BoQ'!G3662 -> R0.00
A103: C13.10 | B103: PAINTING OF MINOR STRUCTURES | C103: ='Conv. Construction BoQ'!G3678 -> R0.00
A104: C13.11 | B104: STRUCTURAL STEELWORK FOR MAJOR STRUCTURES | C104: ='Conv. Construction BoQ'!G3686 -> R0.00
A105: C13.12 | B105: STRUCTURAL STEEL PROTECTIVE TREATMENT OF MAJOR STRUCTURES | C105: ='Conv. Construction BoQ'!G3695 -> R0.00
A106: C13.13 | B106: INCREMENTAL LAUNCHING OF BRIDGE DECKS | C106: ='Conv. Construction BoQ'!G3729 -> R0.00
A107: C13.14 | B107: SPECIALIST STRUCTURES | C107: ='Conv. Construction BoQ'!G3736 -> R0.00 | D107: =SUM(C94:C107) -> R0.00
A109: REPAIR AND REHABILITATION STRUCTURES
A110: C14.1 | B110: ACCESS FOR BRIDGE REHABILITATION | C110: ='Conv. Construction BoQ'!G3763 -> R0.00
A111: C14.2 | B111: CORROSION SURVEY METHODS AND TESTING OF NEAR SURFACE CONCRETE PROPERTIES | C111: ='Conv. Construction BoQ'!G3789 -> R0.00
A112: C14.3 | B112: DEMOLITION AND REMOVAL OF STRUCTURAL CONCRETE AND STEELWORK | C112: ='Conv. Construction BoQ'!G3809 -> R0.00
A113: C14.4 | B113: SURFACE AND STRUCTURAL REPAIR OF CONCRETE MEMBERS | C113: ='Conv. Construction BoQ'!G3834 -> R0.00 | D113: =SUM(C110:C120) -> R0.00
A114: C14.5 | B114: ANCHORING OF REINFORCEMENT, GROUTING AND CRACK INJECTION | C114: ='Conv. Construction BoQ'!G3856 -> R0.00
A115: C14.6 | B115: SPRAYED CONCRETE FOR STRUCTURES | C115: ='Conv. Construction BoQ'!G3869 -> R0.00
A116: C14.7 | B116: PROTECTIVE COATINGS AND TREATMENTS FOR CONCRETE | C116: ='Conv. Construction BoQ'!G3879 -> R0.00
A117: C14.8 | B117: EXTERNAL BONDING OF STEEL AND CARBON FIBRE | C117: ='Conv. Construction BoQ'!G3900 -> R0.00
A118: C14.9 | B118: REPAIR AND REPLACEMENT OF ANCILLARY STRUCTURAL ELEMENTS | C118: ='Conv. Construction BoQ'!G3939 -> R0.00
A119: C14.10 | B119: JACKING OF BRIDGE STRUCTURES | C119: ='Conv. Construction BoQ'!G3952 -> R0.00
A120: C14.11 | B120: REPAIR OF STEEL ELEMENTS | C120: ='Conv. Construction BoQ'!G3960 -> R0.00
A122: QUALITY ASSURANCE
A123: C20.1 | B123: TESTING MATERIALS AND JUDGEMENT OF WORKMANSHIP | C123: ='Conv. Construction BoQ'!G3994 -> R500,000.00 | D123: =SUM(C123) -> R500,000.00
A125: SECTION D: STAKEHOLDER AND COMMUNITY LIAISON, AND TARGET LABOUR AND TARGETED ENTERPRISES UTILISATION AND DEVELOPMENT
A126: D1010 | B126: TRAINING, COACHING, GUIDANCE, MENTORING AND ASSISTANCE | C126: ='Conv. Construction BoQ'!G4047 -> R9,990,000.00 | D126: =SUM(C126) -> R9,990,000.00
B129: SUBTOTAL | C129: =SUM(D12+D18+D23+D30+D35+D41+D49+D59+D63+D66+D77+D91+D107+D113+D123+D126) -> R15,767,500.00

Sheet Form C2.3 Summary of Pricing Sc
A1: C2.3 SUMMARY OF PRICING SCHEDULE
A2: Note to compiler: This form to match the layout of form C2.3 Summary of Pricing schedule in Book 3
A3: CONTRACT SANRAL N.010-010-2021/1R
A4: FOR THE RESEAL ON NATIONAL ROUTE N10 SECTION 1 FROM NANAGA (KM0.0) TO PATERSON (KM22.0)
A7: SCHEDULE A: | B7: ROADWORKS | C7: =Summary!D12+Summary!D18+Summary!D23+Summary!D30+Summary!D35+Summary!D41+Summary!D49+Summary!D59+Summary!D63+Summary!D66+Summary!D77+Summary!D91+Summary!D107+Summary!D113+Summary!D123 -> R5,777,500.00
A9: SCHEDULE B: | B9: BRIDGES | C9: R0.00
A11: Note to compiler: Insert additional schedules for other work such as Schedule C for electrical, lighting, Schedule E for buildings etc.
A12: SCHEDULE C: | B12: ELECTRICAL AND LIGHTING | C12: R0.00
A14: SCHEDULE D: | B14: STAKEHOLDER AND COMMUNITY LIAISON, AND TARGET LABOUR AND TARGETED ENTERPRISES UTILISATION AND DEVELOPMENT | C14: ='Conv. Construction BoQ'!G4047 -> R9,990,000.00
A17: SUBTOTAL A | C17: =C7+C9+C12+C14 -> R15,767,500.00
A19: CONTRACT SKILLS DEVELOPMENT GOAL:
A20: 0.25% of Subtotal A | C20: =0.25%*C17 -> R39,418.75
A22: SUBTOTAL B | C22: =C17+C20 -> R15,806,918.75
A24: VALUE ADDED TAX:
A25: 15% of Subtotal B | C25: =C22*0.15 -> R2,371,037.81
A27: TOTAL CARRIED TO C.1.1.1 : FORM OF OFFER | C27: =C22+C25 -> R18,177,956.56
A33: SIGNED BY TENDERER: …...................................................................................................................
